bitfinex/quotes_SOLUSD_20251208
["timestamp","ask_amount","ask_price","bid_price","bid_amount"]
[1765205087812,0.1,138.37,138.36,12.27470255]
[1765205088015,0.1,138.37,138.36,12.96470255]
[1765205088199,18.05619714,138.46,138.36,12.96470255]
[1765205088200,0.72,138.49,138.4,16.308864]
[1765205088513,7.32030269,138.5,138.44,4.35470255]
[1765205088713,12.39500524,138.5,138.43,4.35470255]
[1765205088919,30.44554675,138.5,138.43,4.35470255]
[1765205089108,46.03441075,138.5,138.43,4.35470255]
[1765205089311,7.22125938,138.48,138.42,11.57888633]
[1765205089503,7.22125938,138.48,138.43,4.35470255]
[1765205089697,0.1,138.5,138.46,4.35470255]
[1765205089899,0.1,138.5,138.48,4.35470255]
[1765205090097,0.1,138.5,138.49,4.35470255]
[1765205090302,0.1,138.52,138.49,4.35470255]
[1765205090501,0.1,138.56,138.51,4.35470255]
[1765205090705,0.1,138.61,138.55,20.66356655]
[1765205090901,0.82,138.61,138.56,4.35470255]
[1765205091100,12.38928102,138.61,138.54,4.35470255]
[1765205091304,7.8853209,138.6,138.54,4.35470255]
[1765205091520,0.1,138.61,138.57,4.35470255]
[1765205091825,0.1,138.61,138.55,7.21757506]
[1765205092023,26.02077939,138.61,138.54,4.35470255]
[1765205092231,5.02470255,138.6,138.52,4.35470255]
[1765205092697,28.39921014,138.61,138.53,7.21856872]
[1765205092892,0.67,138.6,138.55,7.21752629]
[1765205093108,16.978864,138.6,138.52,4.35470255]
[1765205093311,4.35470255,138.58,138.51,16.308864]
[1765205093529,4.35470255,138.58,138.48,16.308864]
[1765205093530,8.80994492,138.58,138.48,16.308864]
[1765205093824,8.80994492,138.58,138.49,4.35470255]
[1765205093825,0.67,138.57,138.49,4.35470255]
[1765205094317,5.02470255,138.57,138.49,11.86491961]
[1765205094496,5.02470255,138.57,138.49,11.57491961]
[1765205094695,4.35470255,138.55,138.47,20.66356655]
[1765205094894,4.35470255,138.54,138.46,12.27470255]
[1765205095117,8.80994492,138.53,138.46,7.92]
[1765205095414,11.57387667,138.52,138.46,7.92]
[1765205095618,0.67,138.53,138.46,7.92]
[1765205095830,0.67,138.52,138.46,7.92]
[1765205096032,5.02470255,138.52,138.46,7.92]
[1765205096205,8.80994492,138.51,138.46,7.92]
[1765205096516,9.47994492,138.51,138.42,19.49899685]
[1765205096720,5.02470255,138.5,138.43,16.308864]
[1765205097126,5.02470255,138.5,138.43,7.2236801]
[1765205097304,12.24360713,138.53,138.43,8.80994492]
[1765205097502,12.24360713,138.53,138.45,4.35470255]
[1765205097699,12.24360713,138.53,138.45,11.57744209]
[1765205097915,5.02470255,138.53,138.45,11.86744209]
[1765205098103,12.24340401,138.53,138.45,11.86744209]
[1765205098299,11.57340401,138.53,138.45,4.35470255]
[1765205098629,0.67,138.52,138.45,13.16464747]
[1765205098929,0.67,138.53,138.45,11.86724178]
[1765205099227,5.02470255,138.53,138.45,11.86724178]
[1765205099530,7.21799319,138.55,138.47,4.35470255]
[1765205099718,7.21799319,138.55,138.48,7.92]
[1765205099902,9.51994492,138.54,138.48,7.92]
[1765205100316,9.51994492,138.54,138.43,7.92]
[1765205100317,25.11880892,138.52,138.43,7.92]
[1765205100544,0.71,138.53,138.43,7.92]
[1765205100826,0.71,138.53,138.46,16.308864]
[1765205101031,0.71,138.56,138.49,4.35470255]
[1765205101206,0.71,138.56,138.5,12.27470255]
[1765205101399,4.35470255,138.55,138.46,4.35470255]
[1765205101596,4.35470255,138.51,138.44,16.308864]
[1765205101827,4.35470255,138.49,138.41,12.27470255]
[1765205101998,4.35470255,138.49,138.41,28.58356655]
[1765205102204,4.35470255,138.47,138.41,7.92]
[1765205102824,0.71,138.46,138.37,4.35470255]
[1765205103024,0.71,138.46,138.35,11.87265758]
[1765205103025,13.16464747,138.45,138.35,11.87265758]
[1765205103230,13.16464747,138.45,138.36,7.22744865]
[1765205103401,28.56356655,138.47,138.39,4.35470255]
[1765205103602,28.56356655,138.47,138.39,20.66356655]
[1765205103802,0.71,138.5,138.43,20.66356655]
[1765205103998,13.16464747,138.49,138.4,28.58356655]
[1765205104226,17.018864,138.5,138.4,24.228864]
[1765205104227,4.35470255,138.47,138.4,24.228864]
[1765205104433,4.35470255,138.45,138.36,15.14744865]
[1765205104636,4.35470255,138.45,138.38,4.35470255]
[1765205104941,7.28895643,138.44,138.37,16.308864]
[1765205105413,6.57895643,138.47,138.4,6.57895643]
[1765205105610,0.71,138.48,138.4,6.57895643]
[1765205105807,6.57895643,138.45,138.39,16.308864]
[1765205106018,15.38890135,138.46,138.39,16.308864]
[1765205106205,6.57895643,138.43,138.36,14.49895643]
[1765205106402,6.57895643,138.42,138.36,7.92]
[1765205106612,6.57895643,138.4,138.36,7.92]
[1765205106943,6.57895643,138.4,138.33,13.80791079]
[1765205107111,0.71,138.39,138.32,24.718864]
[1765205107314,8.80994492,138.43,138.32,24.718864]
[1765205107315,0.71,138.42,138.35,6.57895643]
[1765205107527,0.71,138.42,138.36,7.22741837]
[1765205107810,7.93446424,138.42,138.34,22.88782043]
[1765205108010,6.57895643,138.41,138.34,16.308864]
[1765205108254,6.57895643,138.41,138.32,21.92843132]
[1765205108255,6.57895643,138.39,138.32,8.12]
[1765205108424,7.28895643,138.41,138.33,6.57895643]
[1765205108750,0.71,138.41,138.34,7.22819452]
[1765205108911,8.80994492,138.44,138.36,6.57895643]
[1765205108912,0.71,138.44,138.36,6.57895643]
[1765205109111,14.47895643,138.45,138.36,6.57895643]
[1765205109112,0.71,138.43,138.36,6.57895643]
[1765205109521,0.71,138.43,138.36,13.80632199]
[1765205109815,7.22289977,138.45,138.36,13.80632199]
[1765205109816,6.57895643,138.45,138.38,6.57895643]
[1765205110224,0.71,138.45,138.37,14.78895643]
[1765205110442,0.71,138.48,138.42,6.57895643]
[1765205110744,0.71,138.48,138.42,14.49895643]
[1765205111319,7.28895643,138.51,138.44,6.57895643]
[1765205111512,7.2202166,138.5,138.44,6.57895643]
[1765205111719,7.9302166,138.5,138.43,7.22377748]
[1765205111933,14.50917303,138.5,138.43,7.22377748]
[1765205112152,6.57895643,138.51,138.44,7.22329931]
[1765205112356,0.71,138.52,138.45,6.57895643]
[1765205112643,8.80994492,138.51,138.45,6.57895643]
[1765205112847,6.57895643,138.49,138.42,24.228864]
[1765205113226,0.71,138.49,138.44,6.57895643]
[1765205114523,7.93086944,138.49,138.42,40.90275879]
[1765205114724,6.57895643,138.43,138.35,6.57895643]
[1765205114958,6.57895643,138.45,138.38,6.57895643]
[1765205115123,0.71,138.45,138.38,6.57895643]
[1765205115331,0.71,138.45,138.4,6.57895643]
[1765205115626,14.51022073,138.48,138.41,21.72349925]
[1765205115835,7.2207774,138.49,138.42,0.29]
[1765205116036,0.71,138.52,138.45,6.57895643]
[1765205116426,0.71,138.52,138.46,6.57895643]
[1765205116625,0.71,138.52,138.46,14.49895643]
[1765205116848,7.28895643,138.52,138.46,7.92]
[1765205117165,7.9,138.56,138.4,26.28887534]
[1765205117166,0.71,138.51,138.45,6.57895643]
[1765205117330,0.71,138.51,138.46,6.57895643]
[1765205117524,0.71,138.51,138.45,13.80129434]
[1765205117781,6.57895643,138.46,138.36,18.35832745]
[1765205118058,6.57895643,138.41,138.35,7.92]
[1765205118348,7.28895643,138.4,138.35,7.92]
[1765205118736,0.71,138.39,138.35,7.92]
[1765205119330,7.28895643,138.39,138.32,0.2]
[1765205119541,7.22647781,138.38,138.32,0.2]
[1765205119746,7.93647781,138.38,138.32,0.2]
[1765205120145,0.71,138.37,138.32,0.2]
[1765205120353,6.57895643,138.35,138.32,0.2]
[1765205120529,6.57895643,138.36,138.32,0.2]
[1765205120727,0.71,138.37,138.32,0.2]
[1765205120927,0.71,138.36,138.32,0.2]
[1765205121534,6.57895643,138.35,138.32,0.2]
[1765205122059,6.57895643,138.33,138.27,7.92]
[1765205122249,6.57895643,138.32,138.26,7.23271007]
[1765205122455,6.57895643,138.32,138.25,6.57895643]
[1765205122670,6.57895643,138.29,138.23,7.92]
[1765205122959,6.57895643,138.3,138.23,14.49895643]
[1765205123162,6.57895643,138.3,138.23,7.92]
[1765205123163,6.57895643,138.29,138.23,7.92]
[1765205123459,13.81170632,138.26,138.22,0.2]
[1765205123826,0.66,138.26,138.22,0.2]
[1765205124062,0.66,138.28,138.22,14.01373591]
[1765205124269,6.57895643,138.27,138.22,0.2]
[1765205124555,6.57895643,138.26,138.22,0.2]
[1765205124750,7.65710555,138.26,138.22,0.2]
[1765205124946,0.66,138.27,138.22,0.2]
[1765205124947,0.66,138.25,138.22,0.2]
[1765205125356,8.31710555,138.25,138.22,0.2]
[1765205125561,7.65710555,138.24,138.22,0.2]
[1765205125736,0.66,138.25,138.22,0.2]
[1765205125936,8.31710555,138.24,138.22,0.2]
[1765205126237,0.66,138.24,138.22,0.2]
[1765205126547,0.66,138.23,138.22,0.2]
[1765205127061,17.0572657,138.23,138.22,0.2]
[1765205127644,24.29158531,138.23,138.22,0.2]
[1765205128050,0.66,138.23,138.22,0.2]
[1765205128239,7.89364509,138.25,138.22,0.2]
[1765205128440,40.6061297,138.26,138.22,0.2]
[1765205128441,33.01880892,138.26,138.22,0.2]
[1765205128646,0.66,138.25,138.22,0.2]
[1765205129237,9.46994492,138.28,138.22,0.2]
[1765205129435,15.81077022,138.3,138.24,7.58732078]
[1765205129867,23.398091,138.3,138.23,14.82147219]
[1765205130175,0.66,138.29,138.23,14.82155297]
[1765205130348,0.66,138.29,138.23,7.58732078]
[1765205130678,16.3972657,138.28,138.22,16.508864]
[1765205130959,7.58732078,138.25,138.22,0.2]
[1765205131148,16.308864,138.28,138.22,0.2]
[1765205131149,16.3972657,138.26,138.22,0.2]
[1765205131356,8.24732078,138.27,138.22,0.2]
[1765205131663,0.66,138.27,138.22,7.78732078]
[1765205132742,0.66,138.27,138.22,0.2]
[1765205133064,16.3972657,138.23,138.22,0.2]
[1765205133265,17.0572657,138.23,138.22,0.2]
[1765205133759,8.80994492,138.23,138.22,0.2]
[1765205133973,7.2337303,138.25,138.22,0.2]
[1765205134145,7.8937303,138.25,138.22,0.2]
[1765205134338,16.308864,138.26,138.22,0.2]
[1765205134667,0.66,138.25,138.22,0.2]
[1765205134968,7.89297385,138.26,138.22,0.2]
[1765205135265,0.66,138.25,138.22,0.2]
[1765205135651,7.89373823,138.25,138.22,0.2]
[1765205136440,7.23373823,138.25,138.22,0.2]
[1765205136646,7.89373823,138.25,138.22,0.2]
[1765205137464,7.89401633,138.24,138.22,0.2]
[1765205137872,0.66,138.23,138.22,0.2]
[1765205138279,16.70280202,138.26,138.22,0.2]
[1765205138454,8.24732078,138.25,138.22,0.2]
[1765205138658,0.66,138.24,138.22,0.2]
[1765205138867,0.66,138.25,138.22,0.2]
[1765205139775,7.8935186,138.25,138.22,0.2]
[1765205141449,7.92,138.28,138.23,7.58732078]
[1765205141751,7.2322268,138.27,138.23,7.58732078]
[1765205142060,7.2322268,138.27,138.22,0.2]
[1765205142061,7.8922268,138.27,138.22,7.78732078]
[1765205142461,0.66,138.26,138.22,0.2]
[1765205142652,17.0572657,138.26,138.22,0.2]
[1765205142857,16.3972657,138.25,138.22,0.2]
[1765205143054,25.3127938,138.27,138.22,0.2]
[1765205143275,25.3127938,138.27,138.23,7.58732078]
[1765205143276,7.8922268,138.27,138.23,7.58732078]
[1765205144071,58.70460978,138.29,138.23,7.58732078]
[1765205144072,16.04183637,138.28,138.23,7.58732078]
[1765205144375,16.70183637,138.28,138.23,7.58732078]
[1765205144574,7.23189145,138.28,138.24,7.58732078]
[1765205144776,7.89189145,138.28,138.24,7.58732078]
[1765205144976,0.66,138.27,138.22,0.2]
[1765205145159,41.61809815,138.29,138.23,7.58732078]
[1765205145357,42.27809815,138.29,138.23,7.58732078]
[1765205145678,7.58732078,138.27,138.22,0.2]
[1765205145858,7.2322268,138.27,138.22,7.78732078]
[1765205146048,23.96182458,138.28,138.23,7.58732078]
[1765205146252,7.92,138.28,138.24,7.58732078]
[1765205146453,0.66,138.29,138.22,7.92481931]
[1765205146454,7.89152693,138.29,138.25,7.58732078]
[1765205146680,7.23072454,138.3,138.25,7.58732078]
[1765205146872,7.89072454,138.3,138.25,7.58732078]
[1765205147071,0.66,138.3,138.24,7.92]
[1765205147281,7.2301352,138.31,138.27,7.58732078]
[1765205147582,7.2301352,138.31,138.28,7.58732078]
[1765205147878,7.22961249,138.32,138.29,7.58732078]
[1765205148181,0.66,138.35,138.3,7.58732078]
[1765205148397,7.22877246,138.34,138.31,7.58732078]
[1765205148596,7.22877246,138.34,138.3,7.58732078]
[1765205148885,25.3001907,138.34,138.29,7.58732078]
[1765205149265,25.9601907,138.34,138.29,7.58732078]
[1765205149582,0.66,138.33,138.28,7.58732078]
[1765205149886,7.22961249,138.32,138.29,7.58732078]
[1765205150198,7.22961249,138.32,138.27,7.58732078]
[1765205150493,7.22961249,138.32,138.25,16.798864]
[1765205150494,7.22961249,138.32,138.28,7.58732078]
[1765205150701,7.22927797,138.33,138.29,7.58732078]
[1765205150854,25.30200261,138.33,138.29,7.58732078]
[1765205151056,7.22927797,138.33,138.3,7.58732078]
[1765205151280,7.89927797,138.33,138.27,7.58732078]
[1765205151481,0.67,138.32,138.26,23.89618478]
[1765205151892,7.2301352,138.31,138.26,23.89618478]
[1765205152191,7.2301352,138.31,138.28,7.58732078]
[1765205152367,8.80994492,138.36,138.3,7.58732078]
[1765205152557,8.59,138.39,138.34,7.58732078]
[1765205153087,7.22647781,138.38,138.35,7.58732078]
[1765205153396,5.98820961,138.45,138.37,7.58732078]
[1765205153397,0.67,138.43,138.37,7.58732078]
[1765205153880,7.22438953,138.42,138.37,7.58732078]
[1765205154091,7.22438953,138.42,138.39,7.58732078]
[1765205154463,0.67,138.41,138.35,16.308864]
[1765205154675,0.67,138.41,138.36,7.58732078]
[1765205154893,0.67,138.41,138.37,7.58732078]
[1765205155185,0.67,138.41,138.35,7.58732078]
[1765205155495,7.22402493,138.43,138.39,7.58732078]
[1765205155700,7.22282412,138.45,138.41,7.58732078]
[1765205156000,7.22282412,138.45,138.37,7.22669301]
[1765205156001,0.1,138.46,138.43,7.58732078]
[1765205156204,0.1,138.46,138.44,7.58732078]
[1765205156564,0.1,138.46,138.45,8.07732078]
[1765205156764,0.1,138.46,138.45,7.58732078]
[1765205157087,18.04548853,138.54,138.45,24.38618478]
[1765205157314,7.92,138.58,138.51,7.58732078]
[1765205157591,7.92,138.58,138.52,7.58732078]
[1765205157883,25.92799234,138.57,138.49,7.58732078]
[1765205158110,7.58732078,138.52,138.44,24.228864]
[1765205158384,7.58732078,138.49,138.42,24.228864]
[1765205158579,7.58732078,138.5,138.42,31.81618478]
[1765205158780,0.67,138.51,138.42,31.81618478]
[1765205158781,16.3972657,138.49,138.42,31.81618478]
[1765205158962,16.3972657,138.49,138.43,7.58732078]
[1765205158963,0.67,138.48,138.43,7.58732078]
[1765205159157,0.67,138.48,138.42,7.92]
[1765205159393,8.25732078,138.48,138.42,7.92]
[1765205159686,8.80994492,138.47,138.42,7.92]
[1765205159892,8.80994492,138.47,138.43,7.58732078]
[1765205160071,0.7,138.5,138.46,7.58732078]
[1765205160272,0.7,138.49,138.44,7.58732078]
[1765205160461,0.7,138.49,138.38,7.58732078]
[1765205160793,0.7,138.49,138.48,7.58732078]
[1765205161004,0.7,138.49,138.45,7.58732078]
[1765205161366,8.80994492,138.48,138.42,7.58732078]
[1765205161571,8.80994492,138.48,138.39,7.92]
[1765205161866,16.03247946,138.46,138.41,7.58732078]
[1765205162065,0.7,138.47,138.45,7.58732078]
[1765205162385,5.98820961,138.55,138.45,15.50732078]
[1765205162386,0.7,138.54,138.45,15.50732078]
[1765205162695,17.008864,138.54,138.47,7.58732078]
[1765205162985,8.80994492,138.52,138.48,7.58732078]
[1765205163193,0.7,138.53,138.48,7.58732078]
[1765205163390,9.50994492,138.52,138.48,7.58732078]
[1765205163559,0.7,138.52,138.5,7.58732078]
[1765205163763,0.7,138.52,138.49,7.58732078]
[1765205163991,7.91945879,138.52,138.49,7.58732078]
[1765205164194,8.80994492,138.54,138.51,7.58732078]
[1765205164364,7.21813152,138.55,138.53,7.58732078]
[1765205164568,0.8,138.61,138.54,7.58732078]
[1765205164774,8.01457817,138.61,138.59,7.58732078]
[1765205164992,8.01457817,138.61,138.54,16.308864]
[1765205164993,0.1,138.61,138.6,7.58732078]
[1765205165309,0.1,138.61,138.6,31.48350556]
[1765205165996,0.1,138.61,138.6,7.58732078]
[1765205166166,0.1,138.61,138.6,15.17464156]
[1765205166369,0.1,138.61,138.6,7.58732078]
[1765205166578,0.1,138.61,138.6,15.17464156]
[1765205167112,0.1,138.62,138.61,23.89618478]
[1765205167515,0.1,138.62,138.61,7.58732078]
[1765205167681,0.8,138.62,138.58,7.58732078]
[1765205167982,0.8,138.62,138.56,7.92]
[1765205167983,7.21448668,138.61,138.56,7.92]
[1765205168300,7.21448668,138.61,138.58,7.58732078]
[1765205168522,0.7,138.6,138.57,7.58732078]
[1765205168806,7.31403689,138.62,138.59,7.58732078]
[1765205168977,0.7,138.61,138.59,7.58732078]
[1765205169380,7.58732078,138.6,138.4,99.92732078]
[1765205169583,7.58732078,138.57,138.5,7.58732078]
[1765205169881,8.80994492,138.58,138.52,7.58732078]
[1765205170080,7.58732078,138.56,138.5,7.58732078]
[1765205170281,7.58732078,138.54,138.48,7.58732078]
[1765205170494,17.0972657,138.55,138.49,7.58732078]
[1765205170817,17.0972657,138.55,138.45,7.9]
[1765205170818,7.58732078,138.53,138.47,7.58732078]
[1765205170981,7.58732078,138.53,138.45,7.9]
[1765205170982,0.7,138.52,138.49,7.58732078]
[1765205171178,0.7,138.54,138.51,7.58732078]
[1765205171620,25.25616971,138.58,138.53,7.58732078]
[1765205171812,25.25616971,138.58,138.55,7.58732078]
[1765205171813,0.7,138.57,138.55,7.58732078]
[1765205172019,25.25981523,138.56,138.51,7.58732078]
[1765205172193,25.25981523,138.56,138.5,7.58732078]
[1765205172519,7.21709006,138.56,138.54,7.58732078]
[1765205172898,0.7,138.55,138.51,7.58732078]
[1765205173201,0.7,138.55,138.49,7.58732078]
[1765205173415,0.7,138.55,138.51,7.58732078]
[1765205173793,0.7,138.55,138.52,7.58732078]
[1765205173995,7.21813194,138.54,138.51,7.58732078]
[1765205174194,7.91604849,138.58,138.53,7.58732078]
[1765205174395,0.7,138.58,138.55,7.58732078]
[1765205174600,7.21574364,138.59,138.53,7.58732078]
[1765205174828,0.7,138.57,138.51,7.58732078]
[1765205175015,8.28732078,138.57,138.49,7.58732078]
[1765205175305,7.58732078,138.56,138.49,7.58732078]
[1765205175524,40.6061297,138.55,138.47,7.58732078]
[1765205175729,33.71880892,138.55,138.48,7.58732078]
[1765205175927,0.7,138.54,138.46,7.9]
[1765205176106,7.21865299,138.53,138.48,7.58732078]
[1765205176426,7.21865299,138.53,138.46,7.9]
[1765205176427,25.26528548,138.53,138.47,7.58732078]
[1765205176632,0.7,138.52,138.47,7.58732078]
[1765205177428,0.7,138.55,138.51,7.58732078]
[1765205177727,7.91792796,138.55,138.51,7.58732078]
[1765205177930,7.21723991,138.56,138.53,7.58732078]
[1765205178132,7.91620989,138.58,138.53,7.58732078]
[1765205178431,7.91620989,138.58,138.54,7.58732078]
[1765205178432,0.7,138.57,138.54,7.58732078]
[1765205178725,0.7,138.57,138.52,7.58732078]
[1765205179229,9.50994492,138.57,138.5,7.58732078]
[1765205179412,0.7,138.56,138.52,7.58732078]
[1765205180020,7.21761097,138.55,138.52,7.58732078]
[1765205180218,0.7,138.54,138.5,7.58732078]
[1765205180421,0.7,138.57,138.52,7.58732078]
[1765205180729,0.7,138.57,138.54,7.58732078]
[1765205180928,7.91568573,138.59,138.54,7.58732078]
[1765205181135,7.91568573,138.59,138.5,18.04943104]
[1765205181136,0.76,138.62,138.56,7.58732078]
[1765205181304,0.76,138.62,138.58,7.58732078]
[1765205181725,0.1,138.62,138.6,7.58732078]
[1765205182117,0.1,138.62,138.6,14.80226376]
[1765205182534,0.1,138.62,138.61,23.89618478]
[1765205182836,0.1,138.62,138.61,16.308864]
[1765205183535,0.1,138.62,138.61,23.89618478]
[1765205183831,0.1,138.62,138.61,32.7061297]
[1765205184134,3.03027381,138.66,138.58,7.9]
[1765205184428,3.03027381,138.66,138.65,7.58732078]
[1765205184628,3.03027381,138.66,138.63,15.48732078]
[1765205184840,0.66,138.65,138.58,7.9]
[1765205185379,0.66,138.65,138.56,7.58732078]
[1765205185380,16.3972657,138.64,138.56,7.58732078]
[1765205185507,16.3972657,138.64,138.5,25.63707805]
[1765205185508,0.66,138.65,138.58,7.58732078]
[1765205185835,0.66,138.64,138.61,7.58732078]
[1765205186048,7.21344586,138.63,138.55,7.21722462]
[1765205186339,0.66,138.64,138.6,7.58732078]
[1765205186520,0.66,138.63,138.57,16.308864]
[1765205186727,0.66,138.63,138.6,4.33130194]
[1765205186912,0.66,138.63,138.55,7.21749597]
[1765205187117,0.66,138.63,138.56,4.33130194]
[1765205187431,0.66,138.63,138.57,4.33130194]
[1765205187628,4.99130194,138.63,138.56,4.33130194]
[1765205187837,0.66,138.63,138.57,4.33130194]
[1765205188044,0.66,138.62,138.57,4.33130194]
[1765205188339,0.66,138.62,138.54,7.9]
[1765205188340,12.205632,138.62,138.54,7.9]
[1765205188631,7.87433006,138.62,138.56,4.33130194]
[1765205188838,0.66,138.61,138.54,12.23130194]
[1765205189023,0.66,138.61,138.55,4.33130194]
[1765205189218,0.66,138.61,138.54,7.9]
[1765205189419,7.87240533,138.65,138.6,4.33130194]
[1765205189634,0.66,138.64,138.6,4.33130194]
[1765205190337,7.8731282,138.64,138.58,4.33130194]
[1765205190651,7.8731282,138.64,138.54,12.23130194]
[1765205190652,4.33130194,138.62,138.54,12.23130194]
[1765205190940,0.66,138.61,138.55,4.33130194]
[1765205191311,4.99130194,138.61,138.54,7.9]
[1765205191551,4.99130194,138.61,138.54,12.23130194]
[1765205191754,0.66,138.6,138.54,12.23130194]
[1765205192115,0.66,138.6,138.54,4.33130194]
[1765205192339,7.21552781,138.59,138.53,4.33130194]
[1765205192546,29.58564928,138.59,138.52,4.33130194]
[1765205192753,4.33130194,138.56,138.49,4.33130194]
[1765205192950,0.66,138.55,138.49,4.33130194]
[1765205193154,4.33130194,138.53,138.46,4.33130194]
[1765205193346,4.99130194,138.52,138.45,12.23130194]
[1765205193547,4.99130194,138.52,138.44,0.2]
[1765205193548,0.66,138.51,138.44,0.2]
[1765205193757,13.14124686,138.5,138.44,0.2]
[1765205194063,0.66,138.51,138.45,4.33130194]
[1765205194233,11.55203989,138.49,138.44,0.2]
[1765205194435,4.33130194,138.48,138.44,0.2]
[1765205194665,4.99130194,138.48,138.44,0.2]
[1765205194954,0.66,138.47,138.44,0.2]
[1765205195162,0.66,138.47,138.4,7.9]
[1765205195163,4.33130194,138.46,138.4,7.9]
[1765205195453,4.33130194,138.44,138.37,4.33130194]
[1765205195748,4.99130194,138.45,138.38,4.33130194]
[1765205195951,0.66,138.45,138.4,4.33130194]
[1765205196257,7.88334587,138.44,138.38,4.33130194]
[1765205196457,12.21464781,138.44,138.37,11.55783349]
[1765205196700,0.66,138.43,138.37,4.33130194]
[1765205196825,0.66,138.43,138.39,4.33130194]
[1765205197666,0.66,138.46,138.4,4.33130194]
[1765205198154,13.80124686,138.46,138.39,4.33130194]
[1765205198336,0.66,138.46,138.41,4.33130194]
[1765205198537,0.66,138.45,138.38,7.2264224]
[1765205198736,0.66,138.45,138.39,4.33130194]
[1765205198964,0.66,138.45,138.4,4.33130194]
[1765205199846,24.208864,138.49,138.44,4.33130194]
[1765205199847,7.88078918,138.49,138.44,4.33130194]
[1765205200064,0.66,138.49,138.44,4.33130194]
[1765205200264,0.66,138.49,138.46,4.33130194]
[1765205200431,7.2203534,138.5,138.45,4.33130194]
[1765205200763,0.66,138.52,138.47,4.33130194]
[1765205200960,0.66,138.52,138.46,7.22206644]
[1765205201140,0.66,138.52,138.48,4.33130194]
[1765205201345,0.66,138.52,138.49,4.33130194]
[1765205202441,7.21773743,138.55,138.5,4.33130194]
[1765205202649,0.66,138.56,138.52,4.33130194]
[1765205202975,8.80994492,138.58,138.51,4.33130194]
[1765205202976,7.21672283,138.57,138.51,4.33130194]
[1765205203131,0.66,138.56,138.51,4.33130194]
[1765205203471,0.66,138.56,138.53,4.33130194]
[1765205204137,0.66,138.56,138.49,33.37255238]
[1765205204342,0.66,138.56,138.52,4.33130194]
[1765205204572,7.87721078,138.56,138.49,7.9]
[1765205204743,0.66,138.55,138.51,4.33130194]
[1765205205138,0.66,138.55,138.5,4.33130194]
[1765205205334,4.99130194,138.55,138.48,4.33130194]
[1765205205562,0.66,138.55,138.49,11.55203342]
[1765205205838,0.66,138.54,138.5,4.33130194]
[1765205206055,0.66,138.54,138.48,4.33130194]
[1765205206448,0.66,138.54,138.49,4.33130194]
[1765205206662,7.87819854,138.54,138.49,4.33130194]
[1765205206859,7.87819854,138.54,138.48,4.33130194]
[1765205207264,0.66,138.53,138.48,4.33130194]
[1765205207645,4.99130194,138.53,138.46,4.33130194]
[1765205207875,13.14124686,138.51,138.45,7.9]
[1765205208153,12.89130194,138.52,138.45,12.23130194]
[1765205208347,0.66,138.51,138.47,4.33130194]
[1765205208548,0.66,138.51,138.48,4.33130194]
[1765205208840,0.66,138.53,138.48,4.33130194]
[1765205209042,7.21828136,138.54,138.49,4.33130194]
[1765205209258,7.87828136,138.54,138.49,4.33130194]
[1765205209455,0.66,138.53,138.46,7.22209083]
[1765205209658,0.66,138.53,138.49,4.33130194]
[1765205209853,7.21778628,138.55,138.51,4.33130194]
[1765205210046,0.66,138.54,138.48,4.33130194]
[1765205210354,0.66,138.54,138.46,7.22209083]
[1765205210355,7.21865299,138.53,138.47,4.33130194]
[1765205210564,0.66,138.52,138.48,4.33130194]
[1765205210866,0.66,138.52,138.49,4.33130194]
[1765205211166,0.66,138.52,138.48,4.33130194]
[1765205211540,0.66,138.52,138.49,4.33130194]
[1765205211738,0.67,138.58,138.51,4.33130194]
[1765205211966,0.67,138.63,138.5,24.208864]
[1765205212173,0.67,138.63,138.59,4.33130194]
[1765205212470,7.88370546,138.63,138.59,4.33130194]
[1765205212970,0.67,138.65,138.62,4.33130194]
[1765205213165,0.67,138.65,138.6,7.9]
[1765205213166,3.03027381,138.66,138.64,4.33130194]
[1765205213470,3.03027381,138.66,138.6,7.9]
[1765205213471,3.03027381,138.66,138.65,4.33130194]
[1765205214147,3.70027381,138.66,138.63,4.33130194]